bitfinex-derivatives/quotes_BNBF0:USTF0_20241225
["timestamp","ask_amount","ask_price","bid_price","bid_amount"]
[1735122386621,0.25854119,712.02,710.63,0.903]
[1735122386819,0.25854119,712.01,710.63,0.903]
[1735122387122,0.25854119,712.0,710.63,0.903]
[1735122387322,0.25854119,711.99,710.63,0.903]
[1735122387522,0.25854119,711.98,710.63,0.903]
[1735122387718,0.25854119,711.97,710.63,0.903]
[1735122387917,0.25854119,711.96,710.63,0.903]
[1735122388120,0.25854119,711.95,710.63,0.903]
[1735122388321,0.25854119,711.94,710.63,0.903]
[1735122388523,0.25854119,711.93,710.63,0.903]
[1735122388824,1.21154119,711.92,710.63,0.903]
[1735122389022,0.25854119,711.91,710.63,0.903]
[1735122389219,0.25853564,711.9,710.63,0.903]
[1735122389425,0.25853564,711.89,710.63,0.903]
[1735122389725,0.25853564,711.88,710.63,0.903]
[1735122389919,0.25853564,711.91,710.63,0.903]
[1735122390225,0.25853564,711.9,710.63,0.903]
[1735122390423,0.25853564,711.91,710.04,1.02616988]
[1735122390624,0.25853564,711.91,709.99,1.02616988]
[1735122391223,0.25853564,711.91,710.01,0.28168617]
[1735122391524,0.25853564,711.91,710.02,0.923]
[1735122391728,0.25853564,711.91,710.12,1.02616988]
[1735122391927,0.25850491,711.9,710.12,1.02616988]
[1735122392122,0.25850491,711.91,710.12,1.02616988]
[1735122392322,0.25850491,711.9,710.12,1.02616988]
[1735122392626,0.25850491,711.89,710.18,1.02616988]
[1735122392826,0.25850491,711.91,710.18,1.02616988]
[1735122393026,0.953,711.92,710.18,1.02616988]
[1735122394029,0.953,711.92,710.27,1.02616988]
[1735122395429,0.953,711.92,710.4,1.02616988]
[1735122396430,0.953,711.92,710.03,0.75271624]
[1735122396431,0.953,711.92,710.47,1.02616988]
[1735122397630,0.953,711.92,710.51,1.02616988]
[1735122398538,0.953,711.92,710.53,1.02616988]
[1735122399737,0.953,711.92,710.52,1.02616988]
[1735122401739,0.953,711.92,710.55,1.02616988]
[1735122402839,0.953,711.92,710.58,1.02616988]
[1735122403840,0.953,711.92,710.23,1.02616988]
[1735122403841,0.953,711.92,710.71,1.02616988]
[1735122404937,0.953,711.92,710.77,1.02616988]
[1735122405635,0.953,711.92,710.79,1.02616988]
[1735122406841,0.953,711.92,710.97,1.02616988]
[1735122407735,0.953,711.92,710.94,1.02616988]
[1735122408438,0.968,711.91,710.94,1.02616988]
[1735122408942,0.968,711.91,710.89,1.02616988]
[1735122409134,1.868,711.91,710.89,1.02616988]
[1735122409842,1.868,711.91,710.9,0.896]
[1735122410141,2.833,711.91,710.9,0.896]
[1735122411242,0.934,711.9,710.9,0.896]
[1735122412941,0.767,711.89,710.9,0.896]
[1735122420242,0.767,711.89,710.91,0.28132956]
[1735122425247,0.904,711.88,710.91,0.28132956]
[1735122428248,1.628,711.88,710.91,0.28132956]
[1735122428951,1.628,711.88,710.92,0.899]
[1735122429151,1.628,711.88,710.96,1.02616988]
[1735122430451,1.628,711.88,711.13,1.02616988]
[1735122431051,1.628,711.88,710.92,0.899]
[1735122431052,1.628,711.88,711.1,1.02616988]
[1735122432351,1.628,711.88,710.92,0.899]
[1735122433753,1.628,711.88,710.92,0.689]
[1735122434160,2.402,711.88,710.92,0.689]
[1735122434559,0.25853132,711.87,710.92,0.689]
[1735122435059,2.402,711.88,710.92,0.479]
[1735122435260,0.25854529,711.87,710.92,0.479]
[1735122436253,2.402,711.88,710.92,0.479]
[1735122436254,0.25855149,711.86,710.92,0.479]
[1735122436461,0.25855149,711.86,710.92,0.269]
[1735122436661,0.25855149,711.85,710.92,0.269]
[1735122436863,0.25855149,711.87,710.92,0.269]
[1735122437062,0.25855149,711.84,710.92,0.269]
[1735122437361,0.25855149,711.86,710.92,0.269]
[1735122437559,2.402,711.88,710.92,0.269]
[1735122437560,0.25855149,711.85,710.92,0.269]
[1735122437758,0.25855149,711.87,710.92,0.269]
[1735122438062,0.25855149,711.86,710.92,0.059]
[1735122438260,0.25855149,711.85,710.92,0.059]
[1735122438963,0.908,711.86,710.92,0.059]
[1735122439257,0.25855426,711.85,710.92,0.059]
[1735122439463,0.25855426,711.85,710.02,1.02887276]
[1735122439664,0.25855426,711.85,710.03,0.28167823]
[1735122440464,0.25855426,711.85,710.04,1.033]
[1735122441459,1.097,711.84,710.04,1.033]
[1735122441762,0.25855426,711.83,710.04,1.033]
[1735122444366,0.25858975,711.82,710.04,1.033]
[1735122444568,1.097,711.84,710.04,1.033]
[1735122444768,0.25859058,711.81,710.04,1.033]
[1735122445070,0.25859058,711.8,710.04,1.033]
[1735122445269,0.25859058,711.79,710.04,1.033]
[1735122445568,0.25859058,711.78,710.04,1.033]
[1735122445771,0.25859058,711.77,710.04,1.033]
[1735122445968,0.25859058,711.76,710.04,1.033]
[1735122446167,1.097,711.84,710.04,1.033]
[1735122446168,0.25859058,711.75,710.04,1.033]
[1735122446369,0.25859058,711.74,710.04,1.033]
[1735122446564,0.25859058,711.73,710.04,1.033]
[1735122446765,0.25859058,711.72,710.04,1.033]
[1735122446972,0.25878109,711.71,710.04,1.033]
[1735122447271,0.25878109,711.7,710.04,1.033]
[1735122447474,0.25878109,711.69,710.04,1.033]
[1735122447671,0.25878109,711.68,710.04,1.033]
[1735122447869,0.25878109,711.67,710.04,1.033]
[1735122448070,0.25878109,711.66,710.04,1.033]
[1735122448371,0.25878109,711.65,710.04,1.033]
[1735122448573,0.25878109,711.64,710.04,1.033]
[1735122448868,0.25878109,711.63,710.04,1.033]
[1735122449068,0.25878109,711.62,710.04,1.033]
[1735122449273,0.25878109,711.61,710.04,1.033]
[1735122449475,0.25878109,711.6,710.04,1.033]
[1735122449776,0.25883896,711.59,710.04,1.033]
[1735122449976,0.25883896,711.58,710.04,1.033]
[1735122450274,0.25883896,711.57,710.04,1.033]
[1735122450472,0.25883896,711.56,710.04,1.033]
[1735122450673,0.25883896,711.55,710.04,1.033]
[1735122450869,0.25883896,711.54,710.04,1.033]
[1735122451168,0.25883896,711.53,710.04,1.033]
[1735122451372,0.25883896,711.52,710.04,1.033]
[1735122451575,0.25883896,711.51,710.04,1.033]
[1735122451775,0.25883896,711.5,710.04,1.033]
[1735122451971,0.25883896,711.49,710.04,1.033]
[1735122452173,0.25883896,711.48,710.04,1.033]
[1735122452375,0.25883896,711.47,710.04,1.033]
[1735122452576,0.25883896,711.46,710.04,1.033]
[1735122452771,0.25883896,711.45,710.04,1.033]
[1735122452976,1.072,711.48,710.04,0.951]
[1735122453175,0.25889171,711.47,710.04,0.951]
[1735122453372,0.25889171,711.46,710.04,0.951]
[1735122453574,0.25889171,711.45,710.04,0.951]
[1735122453773,0.25889171,711.44,710.04,0.951]
[1735122453974,0.25889171,711.43,710.04,0.951]
[1735122454180,0.25889171,711.42,710.04,0.951]
[1735122454372,0.25889171,711.41,710.04,0.951]
[1735122454578,0.25889171,711.4,710.04,0.951]
[1735122454778,0.25889171,711.39,710.04,0.951]
[1735122455083,0.25889389,711.38,710.04,0.951]
[1735122455286,0.25889389,711.37,710.04,0.951]
[1735122455476,0.25889389,711.36,710.04,0.951]
[1735122455681,0.25889389,711.35,710.04,0.951]
[1735122455876,0.25889389,711.34,710.04,0.951]
[1735122456075,0.25889389,711.33,710.04,0.951]
[1735122456376,0.25889389,711.32,710.04,0.951]
[1735122456574,1.072,711.48,710.04,0.951]
[1735122456575,0.25889389,711.31,710.04,0.951]
[1735122456778,0.25889389,711.3,710.04,0.951]
[1735122456979,0.25889389,711.29,710.04,0.951]
[1735122457180,0.25889389,711.28,710.04,0.951]
[1735122457381,0.98589389,711.27,710.04,0.951]
[1735122457680,1.32089389,711.26,710.04,0.951]
[1735122457883,0.25889389,711.25,710.04,0.951]
[1735122458278,0.25889389,711.24,710.04,0.951]
[1735122458477,0.25889389,711.23,710.04,0.951]
[1735122458684,0.25889389,711.22,710.04,0.951]
[1735122458882,0.25889389,711.21,710.04,0.951]
[1735122459184,0.25889389,711.2,710.04,0.951]
[1735122459378,0.25889389,711.19,710.04,0.951]
[1735122460984,0.25880664,711.18,710.04,0.951]
[1735122461283,0.25880664,711.17,710.04,0.951]
[1735122461584,0.25880664,711.16,710.04,0.951]
[1735122461786,0.25880664,711.15,710.04,0.951]
[1735122461984,0.25880664,711.14,710.04,0.951]
[1735122462187,0.25880664,711.13,710.04,0.951]
[1735122462481,0.913,711.2,708.16,3.84171792]
[1735122462482,0.25880664,711.12,708.47,1.02887276]
[1735122462682,0.25880664,711.11,708.6,0.28224668]
[1735122462882,0.913,711.2,708.6,0.28224668]
[1735122463284,0.25880582,711.19,708.6,0.28224668]
[1735122463482,0.25880582,711.18,708.6,0.28224668]
[1735122463684,0.25880582,711.19,708.6,0.28224668]
[1735122463984,0.25880582,711.18,708.6,0.28224668]
[1735122464284,0.25880582,711.19,708.6,0.28224668]
[1735122464482,0.25880582,711.18,708.6,0.28224668]
[1735122464785,0.25880582,711.17,708.6,0.28224668]
[1735122464987,0.25880582,711.16,708.6,0.28224668]
[1735122465181,0.25880582,711.15,708.6,0.28224668]
[1735122465386,0.25880582,711.14,708.6,0.28224668]
[1735122465584,0.25880582,711.13,708.6,0.28224668]
[1735122465786,0.25880582,711.12,708.6,0.28224668]
[1735122466086,0.25880582,711.11,708.61,1.084]
[1735122466287,0.25880582,711.1,708.61,1.084]
[1735122466491,0.25880582,711.09,708.61,1.084]
[1735122466686,0.913,711.2,708.61,1.084]
[1735122466687,0.25880582,711.08,708.69,1.02887276]
[1735122466985,0.913,711.2,708.69,1.02887276]
[1735122467189,0.25879442,711.19,708.69,1.02887276]
[1735122467587,0.25879442,711.19,708.78,1.02887276]
[1735122468089,0.25879442,711.18,708.78,1.02887276]
[1735122468284,0.25874564,711.18,708.78,1.02887276]
[1735122468591,0.25874564,711.17,709.02,1.02887276]
[1735122468789,0.25874564,711.16,709.02,1.02887276]
[1735122468983,0.913,711.2,709.02,1.02887276]
[1735122469186,0.25874443,711.19,709.02,1.02887276]
[1735122469588,0.25874443,711.19,709.06,1.02887276]
[1735122470490,0.25874443,711.19,708.62,1.77867622]
[1735122470491,0.25874443,711.19,709.1,1.02887276]
[1735122470890,0.913,711.2,709.1,1.02887276]
[1735122471091,0.25877988,711.19,709.1,1.02887276]
[1735122471492,0.25877988,711.19,709.05,1.02887276]
[1735122472695,0.25877988,711.19,709.11,1.02887276]
[1735122473391,0.25877988,711.19,709.2,1.02887276]
[1735122473697,0.25876754,711.18,709.2,1.02887276]
[1735122473994,0.25876754,711.17,709.2,1.02887276]
[1735122474195,0.25876754,711.16,709.2,1.02887276]
[1735122474396,0.25876754,711.15,709.2,1.02887276]
[1735122474599,0.25876754,711.14,709.2,1.02887276]
[1735122474799,0.25876754,711.13,709.2,1.02887276]
[1735122474994,0.25876754,711.19,709.26,1.02887276]
[1735122475192,0.25876754,711.18,709.26,1.02887276]
[1735122475392,0.913,711.2,709.26,1.02887276]
[1735122475393,0.25876754,711.17,709.26,1.02887276]
[1735122475699,0.25876754,711.16,709.26,1.02887276]
[1735122475897,0.25876754,711.15,709.41,1.02887276]
[1735122476092,0.25876754,711.14,709.41,1.02887276]
[1735122476296,0.25874535,711.13,709.41,1.02887276]
[1735122476497,0.25874535,711.12,709.41,1.02887276]
[1735122476696,0.25874535,711.11,709.41,1.02887276]
[1735122476897,0.25874535,711.1,709.41,1.02887276]
[1735122477097,0.25874535,711.19,709.41,1.02887276]
[1735122477298,0.25874535,711.18,709.53,1.02887276]
[1735122477498,0.25874535,711.17,709.53,1.02887276]
[1735122477694,0.25874535,711.25,709.53,1.02887276]
[1735122478399,0.25874535,711.25,709.92,1.02887276]
[1735122478803,0.98874535,711.25,709.92,1.02887276]
[1735122478996,0.25864659,711.24,709.92,1.02887276]
[1735122479599,0.25864659,711.24,710.02,1.02887276]
[1735122480105,0.73,711.25,710.02,1.02887276]
[1735122480606,0.73,711.25,710.07,1.02887276]
[1735122480805,1.683,711.25,710.07,1.02887276]
[1735122481302,0.25864102,711.24,710.07,1.02887276]
[1735122481506,0.25864102,711.24,710.12,1.02887276]
[1735122481507,1.07,711.23,710.12,1.02887276]
[1735122481706,0.25864102,711.22,710.12,1.02887276]
[1735122482306,1.07,711.23,710.12,1.02887276]
[1735122482508,1.07,711.23,710.03,1.02887276]
[1735122483606,1.07,711.23,709.38,2.10061521]
[1735122483607,1.07,711.23,710.0,1.02887276]
[1735122484411,1.07,711.23,709.94,1.02887276]
[1735122485409,1.07,711.23,709.95,1.73787276]
[1735122485908,1.124,711.22,709.95,1.73787276]
[1735122486505,1.124,711.22,709.95,0.709]
[1735122487711,1.124,711.22,709.99,1.02887276]
[1735122488713,1.124,711.22,709.97,1.02887276]
[1735122489919,1.124,711.22,710.02,1.02887276]
[1735122491113,1.124,711.22,710.12,1.02887276]
[1735122493822,1.124,711.22,709.95,0.709]
[1735122494821,1.124,711.22,709.98,1.02887276]
[1735122495922,1.124,711.22,709.95,0.709]
[1735122499023,0.30000001,711.22,709.95,0.709]
[1735122499224,0.30000001,711.22,709.97,0.28170204]
[1735122500426,0.992,711.21,709.97,0.28170204]
[1735122500620,0.992,711.21,710.31,1.02887276]
[1735122501525,0.992,711.21,710.26,1.02887276]
[1735122502324,0.066,711.21,710.26,1.02887276]
[1735122502925,0.066,711.21,710.23,1.02887276]
[1735122502926,1.14,711.21,710.23,1.02887276]
[1735122503721,1.14,711.21,710.26,1.02887276]
[1735122504526,1.14,711.21,710.23,1.02887276]
[1735122504827,1e-08,711.23,710.23,1.02887276]
[1735122505224,1e-08,711.23,710.25,1.02887276]
[1735122506031,0.81,711.22,710.25,1.02887276]
[1735122506330,1.04457298,713.63,710.25,1.02887276]
[1735122506631,0.25833346,712.31,710.27,1.02887276]
[1735122507431,0.945,712.3,710.27,1.02887276]
[1735122507632,0.25834405,712.29,710.13,1.02887276]
[1735122508331,0.945,712.3,710.13,1.02887276]
[1735122508525,0.2583424,712.29,710.13,1.02887276]
[1735122508730,0.2583424,712.29,710.15,1.02887276]
[1735122509931,0.2583424,712.29,709.97,0.28170204]
[1735122509932,0.2583424,712.29,710.2,1.02887276]
[1735122510230,0.2583424,712.29,710.3,0.28157116]
[1735122510431,0.25834155,712.28,710.3,0.28157116]
[1735122510630,0.25834155,712.27,710.3,0.28157116]
[1735122510831,0.25834155,712.26,710.3,0.28157116]
[1735122511032,0.25834155,712.25,710.3,0.28157116]
[1735122511331,0.945,712.3,710.3,0.28157116]
[1735122512232,0.945,712.3,710.3,1.31044392]
[1735122513234,0.945,712.3,710.3,0.28157116]
[1735122515531,0.945,712.3,710.32,1.02887276]
[1735122516238,0.945,712.3,710.4,1.02887276]
[1735122516432,0.945,712.3,710.41,0.936]
[1735122517237,0.945,712.3,710.42,1.02887276]
[1735122518135,0.945,712.3,710.5,1.02887276]
[1735122519439,0.945,712.3,710.57,1.02887276]
[1735122519841,0.25827801,712.29,710.57,1.02887276]
[1735122520243,0.25827801,712.29,710.61,1.02887276]
[1735122521036,0.945,712.3,710.61,1.02887276]
[1735122521237,0.25826363,712.29,710.84,1.02887276]
[1735122521842,1.17826363,712.29,710.84,1.02887276]
[1735122522043,0.25826363,712.28,710.84,1.02887276]
[1735122522843,0.25826363,712.28,710.89,1.02887276]
[1735122523041,0.92,712.29,710.89,1.02887276]
[1735122523538,0.92,712.29,710.95,1.02887276]
[1735122524248,0.92,712.29,710.67,1.02887276]
[1735122525847,1.099,712.28,710.81,1.02887276]
[1735122526649,1.099,712.28,711.05,1.02887276]
[1735122527743,1.099,712.28,711.03,1.02887276]
[1735122528950,1.099,712.28,711.01,1.02887276]
[1735122529453,1.099,712.28,711.02,0.28128603]
[1735122529749,1.099,712.28,711.15,1.02887276]
[1735122530654,1.099,712.28,711.23,1.02887276]
[1735122531754,1.099,712.28,711.24,0.992]
[1735122533757,2.235,712.28,711.24,0.992]
[1735122535457,2.235,712.28,711.26,1.02887276]
[1735122536759,2.235,712.28,711.27,1.02887276]
[1735122537756,2.235,712.28,711.24,0.992]
[1735122537958,3.336,712.28,711.24,0.992]
[1735122541959,3.336,712.28,711.28,1.02887276]
[1735122542866,3.336,712.28,711.24,0.992]
[1735122545764,3.336,712.28,711.02,0.28128603]
[1735122545969,3.336,712.28,711.02,1.31015879]
[1735122546867,3.336,712.28,711.03,0.74]
[1735122549366,3.336,712.28,711.04,0.28127812]
[1735122549567,3.336,712.28,711.06,1.02887276]
[1735122550373,3.336,712.28,711.04,0.28127812]
[1735122550374,3.336,712.28,711.44,1.02887276]
[1735122550773,2.237,712.28,711.44,1.02887276]
[1735122551275,2.237,712.28,711.4,1.02887276]
[1735122551773,1.123,712.27,711.4,1.02887276]
[1735122552276,1.123,712.27,711.12,1.02887276]
[1735122552277,1.123,712.27,711.43,1.02887276]
[1735122553078,1.123,712.27,711.45,1.02887276]
[1735122554078,2.186,712.27,711.45,1.02887276]
[1735122554378,2.186,712.27,711.49,1.02887276]
[1735122555478,2.186,712.27,711.48,1.02887276]
[1735122556577,2.186,712.27,711.43,1.02887276]
[1735122557180,2.186,712.27,711.41,1.02887276]
[1735122558182,2.186,712.27,711.42,1.02887276]
[1735122559283,2.186,712.27,711.44,1.02887276]
[1735122560884,2.186,712.27,711.32,1.02887276]
[1735122562486,2.186,712.27,711.31,1.02887276]
[1735122563280,2.186,712.27,711.29,1.02887276]
[1735122563788,3.128,712.27,711.29,1.02887276]
[1735122564287,3.128,712.27,711.3,1.02887276]
[1735122565289,3.128,712.27,711.29,1.02887276]
[1735122566285,3.128,712.27,711.33,1.02887276]
[1735122567092,3.128,712.27,711.04,0.28127812]
[1735122568590,3.128,712.27,711.03,0.74]
[1735122568893,0.2583744,712.26,711.03,0.74]
[1735122571387,0.25842727,712.25,711.03,0.74]
[1735122571694,0.25842727,712.24,711.03,0.74]
[1735122571888,0.25842727,712.23,711.03,0.74]
[1735122572094,0.25842727,712.22,710.66,1.02887276]
[1735122572394,0.25841797,712.21,710.66,1.02887276]
[1735122572595,0.25841797,712.2,710.61,1.02887276]
[1735122572791,0.25841797,712.19,710.61,1.02887276]
[1735122572993,0.25841797,712.18,710.61,1.02887276]
[1735122573297,0.25841797,712.17,710.62,0.82]
[1735122573494,0.25841797,712.16,710.62,0.82]
[1735122573795,0.25841797,712.15,710.62,0.82]
[1735122573996,3.128,712.27,710.62,0.82]
[1735122573997,0.25841797,712.14,710.62,0.82]
[1735122574297,0.25840743,712.13,710.62,0.82]
[1735122574498,0.25840743,712.26,710.62,0.82]
[1735122574696,0.25840743,712.25,710.62,0.82]
[1735122574898,0.25840743,712.24,710.62,0.82]
[1735122575099,0.25840743,712.23,710.62,0.82]
[1735122575396,0.25840743,712.22,710.62,0.82]
[1735122575594,0.25840743,712.21,710.62,0.82]
[1735122575800,0.25840743,712.2,710.62,0.82]
[1735122576100,0.25840743,712.19,710.62,0.82]
[1735122576298,0.25840743,712.18,710.62,0.82]
[1735122576495,0.25840743,712.17,710.62,0.82]
[1735122576800,0.53924319,712.16,710.62,0.82]
[1735122576995,0.25840743,712.15,710.62,0.82]
[1735122577803,0.28083576,712.16,710.62,0.82]
[1735122577994,1.18883576,712.16,710.62,0.82]
[1735122578705,0.25843447,712.15,710.62,0.82]
[1735122578901,0.25843685,712.14,710.62,0.82]
[1735122579100,1.18883576,712.16,710.62,0.82]
[1735122579304,0.25843841,712.15,710.62,0.82]
[1735122582206,0.944,712.14,710.62,0.82]
[1735122582399,0.25843841,712.13,710.62,0.82]
[1735122585007,0.944,712.14,710.62,0.82]
[1735122585308,0.25839809,712.13,710.63,0.28144041]
[1735122585709,0.944,712.14,710.63,0.28144041]
[1735122591409,0.944,712.14,710.64,1.075]
[1735122592506,0.25837643,712.13,710.64,1.075]
[1735122592711,0.944,712.14,710.64,1.075]
[1735122594111,2.043,712.14,710.64,1.075]
[1735122595007,1.099,712.14,710.64,1.075]
[1735122596315,0.912,712.13,710.64,1.075]
[1735122597815,0.912,712.13,710.67,1.02887276]
[1735122599017,0.912,712.13,710.74,1.02887276]
[1735122600120,0.912,712.13,711.05,1.02887276]
[1735122601313,0.912,712.13,711.11,1.02887276]
[1735122602514,0.912,712.13,711.1,1.02887276]
[1735122603922,0.912,712.13,711.19,1.02887276]
[1735122605122,0.912,712.13,711.07,1.02887276]
[1735122606216,0.912,712.13,711.08,1.02887276]
[1735122607319,0.912,712.13,711.07,1.02887276]
[1735122608224,0.912,712.13,711.08,1.02887276]
[1735122609123,0.912,712.13,711.07,1.02887276]
[1735122610223,0.912,712.13,711.09,1.02887276]
[1735122610417,1.976,712.13,711.09,1.02887276]
[1735122611224,1.064,712.13,711.09,1.02887276]
[1735122611526,1.064,712.13,711.11,1.02887276]
[1735122612325,1.064,712.13,710.79,1.02887276]
[1735122612326,1.102,712.12,711.07,1.02887276]
[1735122613520,2.099,712.12,710.99,1.02887276]
[1735122614027,2.099,712.12,711.0,0.28129395]
[1735122614429,2.099,712.12,711.01,1.02887276]
[1735122616836,2.099,712.12,711.0,0.28129395]
[1735122616837,2.099,712.12,711.0,1.31016671]
[1735122617732,2.099,712.12,711.04,1.02887276]
[1735122619933,2.099,712.12,711.09,1.02887276]
[1735122620933,2.099,712.12,711.12,1.02887276]
[1735122622226,2.099,712.12,711.17,1.02887276]
[1735122623238,2.099,712.12,711.18,1.02887276]
[1735122624132,2.099,712.12,711.19,1.02887276]
[1735122625235,2.099,712.12,711.01,0.81]
[1735122625833,2.099,712.12,711.17,1.02887276]
[1735122626436,2.099,712.12,711.33,1.02887276]
[1735122627236,2.099,712.12,711.27,1.02887276]
[1735122627435,0.997,712.12,711.27,1.02887276]
[1735122628535,0.997,712.12,711.24,1.02887276]
[1735122628732,1.065,712.11,711.24,1.02887276]
[1735122629536,1.065,712.11,711.3,1.02887276]
[1735122630538,1.065,712.11,711.29,1.02887276]
[1735122631637,1.065,712.11,711.37,1.02887276]
[1735122632637,1.902,712.11,711.3,1.72587276]
[1735122633934,1.902,712.11,711.51,1.02887276]
[1735122635236,1.902,712.11,711.49,1.02887276]
[1735122636041,1.902,712.11,711.47,1.02887276]
[1735122638635,1.82737608,712.11,711.47,1.02887276]
[1735122639142,1.82737608,712.11,711.35,1.02887276]
[1735122639943,0.435,712.1,711.35,1.02887276]
[1735122640238,0.435,712.1,711.47,1.02887276]
[1735122641238,0.435,712.1,711.3,0.697]
[1735122641239,0.435,712.1,711.4,1.02887276]
[1735122642242,0.435,712.1,711.69,1.02887276]
[1735122643141,0.435,712.1,711.31,0.75011918]
[1735122643142,0.435,712.1,711.71,1.02887276]
[1735122644943,0.435,712.1,711.72,0.799]
[1735122648646,1.82737608,712.11,711.72,0.799]
[1735122648844,1.178,712.11,711.72,0.799]
[1735122652248,2.297,712.11,711.72,0.799]
[1735122654051,1.55948757,712.11,711.72,0.799]
[1735122658052,1.55948757,712.11,711.07,1.02887276]
[1735122659152,1.55948757,712.11,711.08,0.964]
[1735122660455,1.55948757,712.11,711.15,1.02887276]
[1735122661455,1.55948757,712.11,711.08,0.964]
[1735122663357,0.28085942,712.1,711.08,0.964]
[1735122663554,0.25838791,712.09,711.08,0.964]
[1735122664055,0.28085942,712.1,711.08,0.964]
[1735122664255,0.25841146,712.09,711.08,0.964]
[1735122664657,1.16041146,712.09,711.08,0.964]
[1735122664851,0.25841146,712.08,711.08,0.964]
[1735122666553,0.902,712.09,711.08,0.964]
[1735122668558,0.25845215,712.08,711.08,0.964]
[1735122669361,0.25853594,712.07,711.08,0.964]
[1735122669559,0.25853594,712.06,711.08,0.964]
[1735122669758,0.25853594,712.05,711.08,0.964]
[1735122670159,0.25853594,712.04,709.86,1.02887276]
[1735122670464,0.25853594,712.03,709.96,0.28170601]
[1735122670664,0.25853594,712.02,709.96,0.28170601]
[1735122671060,0.25853594,712.01,709.96,0.28170601]
[1735122671265,0.25853594,712.0,709.97,1.062]
[1735122671460,0.902,712.09,709.97,1.062]
[1735122671661,0.25841271,712.08,709.97,1.062]
[1735122671864,0.25841261,712.07,709.97,1.062]
[1735122672066,1.004,712.07,709.97,1.062]
[1735122672260,0.25841261,712.06,709.97,1.062]
[1735122674068,1.004,712.07,709.97,1.062]
[1735122677870,2.05,712.07,709.97,1.062]
[1735122678473,0.25846587,712.06,709.97,1.062]
[1735122679066,2.05,712.07,709.97,1.062]
[1735122680273,0.25850868,712.06,709.97,1.062]
[1735122682768,0.25850868,712.05,709.97,1.062]
[1735122682971,0.25850868,712.04,709.97,1.062]
[1735122683175,0.25850868,712.03,709.97,1.062]
[1735122683372,2.05,712.07,709.97,1.062]
[1735122683569,0.25848438,712.06,709.97,1.062]
[1735122683778,2.05,712.07,709.97,1.062]
[1735122684776,0.25841455,712.06,709.97,1.062]
[1735122685576,0.25841455,712.06,709.98,1.02887276]
[1735122686471,0.25841455,712.06,710.04,1.02887276]
[1735122686674,2.05,712.07,710.04,1.02887276]
[1735122687671,2.05,712.07,709.98,1.02887276]
[1735122688577,2.05,712.07,710.05,1.02887276]
[1735122689377,2.05,712.07,710.17,1.02887276]
[1735122690080,0.2583642,712.06,710.17,1.02887276]
[1735122690472,0.2583642,712.05,710.17,1.02887276]
[1735122690673,0.28085942,712.1,710.4,1.02887276]
[1735122690977,0.2583678,712.09,710.4,1.02887276]
[1735122691475,0.25835422,712.08,710.4,1.02887276]
[1735122691875,0.25835422,712.08,710.14,1.02887276]
[1735122691876,0.25835422,712.08,710.54,1.02887276]
[1735122692675,1.567,712.09,710.54,1.02887276]
[1735122692881,1.567,712.09,710.59,1.02887276]
[1735122693973,1.567,712.09,710.57,1.02887276]
[1735122695579,1.567,712.09,710.74,1.02887276]
[1735122696474,1.567,712.09,710.75,0.916]
[1735122698080,1.567,712.09,710.77,1.02887276]
[1735122699180,1.567,712.09,710.75,1.94487276]
[1735122700383,1.567,712.09,710.75,0.916]
[1735122702880,0.28086731,712.08,710.75,0.916]
[1735122708092,0.25837804,712.07,710.75,0.916]
[1735122708587,1.37637804,712.07,710.75,0.916]
[1735122708788,1.118,712.07,710.75,0.916]
[1735122709186,0.25838241,712.06,710.75,0.916]
[1735122709583,0.25838981,712.05,710.75,0.916]
[1735122709787,1.118,712.07,710.75,0.916]